fUSD/lending_fUSD_20250523
["ID","MTS","AMOUNT","RATE_DAILY","PERIOD"]
[362135670,1748020245848,-420.0,0.00027397,4]
[362135672,1748020245858,-420.0,0.00027397,4]
[362135674,1748020245867,-420.0,0.00027397,4]
[362135676,1748020245876,-420.0,0.00027397,4]
[362135678,1748020245885,-420.0,0.00027397,4]
[362135680,1748020245894,-420.0,0.00027397,4]
[362135682,1748020245904,-420.0,0.00027397,4]
[362135683,1748020245914,-420.0,0.00027397,4]
[362135686,1748020245924,-420.0,0.00027397,4]
[362135690,1748020245934,-420.0,0.00027397,4]
[362135692,1748020245943,-420.0,0.00027397,4]
[362135695,1748020245952,-420.0,0.00027397,4]
[362135698,1748020245962,-507.14085087,0.00027397,4]
[362135701,1748020245975,-420.0,0.00027397,4]
[362135703,1748020245985,-420.0,0.00027397,4]
[362135705,1748020245994,-420.0,0.00027397,4]
[362135707,1748020246004,-420.0,0.00027397,4]
[362135709,1748020246014,-420.0,0.00027397,4]
[362135711,1748020246023,-427.29304641,0.00027397,4]
[362135713,1748020246033,-420.0,0.00027397,4]
[362135715,1748020246043,-420.0,0.00027397,4]
[362135717,1748020246053,-420.0,0.00027397,4]
[362135719,1748020246062,-420.0,0.00027397,4]
[362135721,1748020246071,-420.0,0.00027397,4]
[362135723,1748020246080,-164.83,0.00027397,4]
[362135724,1748020246089,-420.0,0.00027397,4]
[362135726,1748020246099,-420.0,0.00027397,4]
[362135729,1748020246109,-156.86,0.00027397,4]
[362135730,1748020246119,-420.0,0.00027397,4]
[362135732,1748020246128,-420.0,0.00027397,4]
[362135734,1748020246139,-420.0,0.00027397,4]
[362135736,1748020246148,-420.0,0.00027397,4]
[362135738,1748020246158,-420.0,0.00027397,4]
[362135741,1748020246168,-420.0,0.00027397,4]
[362135744,1748020246177,-299.06,0.00027397,4]
[362135746,1748020246187,-420.0,0.00027397,4]
[362135748,1748020246197,-420.0,0.00027397,4]
[362135750,1748020246207,-420.0,0.00027397,4]
[362135753,1748020246217,-420.0,0.00027397,4]
[362135754,1748020246227,-420.0,0.00027397,4]
[362135756,1748020246236,-420.0,0.00027397,4]
[362135758,1748020246246,-866.35,0.00027397,4]
[362135760,1748020246255,-420.0,0.00027397,4]
[362135762,1748020246265,-420.0,0.00027397,4]
[362135764,1748020246274,-420.0,0.00027397,4]
[362135766,1748020246285,-420.0,0.00027397,4]
[362135768,1748020246294,-420.0,0.00027397,4]
[362135770,1748020246304,-420.0,0.00027397,4]
[362135772,1748020246314,-423.0,0.00027397,4]
[362135774,1748020246323,-420.0,0.00027397,4]
[362135776,1748020246333,-670.82,0.00027397,4]
[362135778,1748020246343,-189.183171,0.00027397,4]
[362135780,1748020246352,-420.0,0.00027397,4]
[362135782,1748020246361,-1376.7,0.00027397,4]
[362135784,1748020246370,-420.0,0.00027397,4]
[362135786,1748020246379,-420.0,0.00027397,4]
[362135788,1748020246389,-420.0,0.00027397,4]
[362135790,1748020246398,-420.0,0.00027397,4]
[362135792,1748020246409,-420.0,0.00027397,4]
[362135794,1748020246418,-420.0,0.00027397,4]
[362135796,1748020246427,-445.2317929,0.00027397,4]
[362135798,1748020246436,-420.0,0.00027397,4]
[362135800,1748020246447,-420.0,0.00027397,4]
[362135802,1748020246456,-420.0,0.00027397,4]
[362135804,1748020246466,-420.0,0.00027397,4]
[362135806,1748020246475,-421.56222024,0.00027397,4]
[362135807,1748020246485,-4268.83,0.00027397,4]
[362135809,1748020246494,-420.0,0.00027397,4]
[362135811,1748020246504,-317.85730843,0.00027397,4]
[362135813,1748020246513,-420.0,0.00027397,4]
[362135815,1748020246523,-420.0,0.00027397,4]
[362135817,1748020246532,-555.25420656,0.00027397,4]
[362135820,1748020246542,-420.0,0.00027397,4]
[362135822,1748020246552,-420.0,0.00027397,4]
[362135824,1748020246562,-420.0,0.00027397,4]
[362135826,1748020246571,-420.0,0.00027397,4]
[362135827,1748020246580,-420.0,0.00027397,4]
[362135829,1748020246590,-420.0,0.00027397,4]
[362135831,1748020246599,-424.24569262,0.00027397,4]
[362135833,1748020246609,-279.89,0.00027397,4]
[362135835,1748020246620,-420.0,0.00027397,4]
[362135838,1748020246631,-556.09857407,0.00027397,4]
[362135839,1748020246641,-420.0,0.00027397,4]
[362135841,1748020246650,-420.0,0.00027397,4]
[362135843,1748020246660,-191.25,0.00027397,4]
[362135845,1748020246669,-2199.74,0.00027397,2]
[362135847,1748020246679,-420.0,0.00027397,4]
[362135849,1748020246688,-5410.74,0.00027397,4]
[362135851,1748020246697,-420.0,0.00027397,4]
[362135853,1748020246707,-420.0,0.00027397,4]
[362135855,1748020246716,-420.0,0.00027397,4]
[362135857,1748020246726,-420.0,0.00027397,4]
[362135859,1748020246736,-420.0,0.00027397,4]
[362135861,1748020246745,-420.0,0.00027397,4]
[362135863,1748020246755,-6080.5,0.00027397,4]
[362135865,1748020246764,-460.25,0.00027397,4]
[362135867,1748020246774,-420.0,0.00027397,4]
[362135869,1748020246783,-420.0,0.00027397,4]
[362135871,1748020246792,-1473.4,0.00027397,4]
[362135873,1748020246802,-420.0,0.00027397,4]
[362135875,1748020246812,-420.0,0.00027397,4]
[362135877,1748020246821,-420.0,0.00027397,4]
[362135879,1748020246831,-420.0,0.00027397,4]
[362135881,1748020246842,-420.0,0.00027397,4]
[362135883,1748020246851,-420.0,0.00027397,4]
[362135884,1748020246861,-420.0,0.00027397,4]
[362135885,1748020246871,-522.81,0.00027397,4]
[362135886,1748020246880,-788.06,0.00027397,4]
[362135887,1748020246890,-420.0,0.00027397,4]
[362135888,1748020246899,-420.0,0.00027397,4]
[362135889,1748020246908,-156.47629288,0.00027397,4]
[362135890,1748020246919,-741.45,0.00027397,4]
[362135891,1748020246929,-420.0,0.00027397,4]
[362135892,1748020246938,-9451.47,0.00027397,4]
[362135893,1748020246948,-420.0,0.00027397,4]
[362135894,1748020246959,-420.0,0.00027397,4]
[362135896,1748020246971,-420.0,0.00027397,4]
[362135898,1748020246980,-420.0,0.00027397,4]
[362135899,1748020246990,-420.0,0.00027397,4]
[362135902,1748020247000,-488.00663334,0.00027397,4]
[362135903,1748020247010,-420.0,0.00027397,4]
[362135905,1748020247019,-420.0,0.00027397,4]
[362135907,1748020247029,-154.48,0.00027397,4]
[362135909,1748020247038,-420.0,0.00027397,2]
[362135911,1748020247050,-826.54,0.00027397,4]
[362135913,1748020247060,-420.0,0.00027397,4]
[362135915,1748020247069,-420.0,0.00027397,4]
[362135917,1748020247079,-420.0,0.00027397,4]
[362135919,1748020247089,-1263.72,0.00027397,2]
[362135921,1748020247099,-151.36,0.00027397,2]
[362135923,1748020247109,-587.28953052,0.000274,2]
[362135925,1748020247119,-1000.0,0.000274,2]
[362135927,1748020247130,-1000.0,0.000274,2]
[362135929,1748020247140,-1000.0,0.000274,3]
[362135931,1748020247151,-1000.0,0.000274,3]
[362135934,1748020247161,-1025.0,0.000274,4]
[362135935,1748020247171,-1000.0,0.000274,4]
[362135937,1748020247180,-1000.0,0.000274,5]
[362135940,1748020247190,-1000.0,0.000274,5]
[362135942,1748020247202,-1000.0,0.000274,5]
[362135944,1748020247211,-1000.0,0.000274,2]
[362135946,1748020247221,-2354.3108,0.00027434,2]
[362135948,1748020247231,-344.57412457,0.00027434,2]
[362135950,1748020247240,-363.698423,0.00027485,4]
[362135952,1748020247250,-206.0,0.00027495,5]
[362135954,1748020247263,-46282.142893,0.00027524,3]
[362135956,1748020247272,-420.0,0.00027534,4]
[362135958,1748020247281,-420.0,0.00027534,4]
[362135960,1748020247291,-420.0,0.00027534,4]
[362135962,1748020247300,-420.0,0.00027534,4]
[362135964,1748020247309,-420.0,0.00027534,4]
[362135966,1748020247319,-420.0,0.00027534,4]
[362135968,1748020247328,-308.58,0.00027534,4]
[362135970,1748020247337,-420.0,0.00027534,4]
[362135972,1748020247347,-420.0,0.00027534,4]
[362135974,1748020247356,-479.370964,0.00027534,4]
[362135975,1748020247365,-420.0,0.00027534,4]
[362135977,1748020247374,-420.0,0.00027534,4]
[362135979,1748020247384,-420.0,0.00027534,4]
[362135981,1748020247393,-150.0,0.00027534,4]
[362135983,1748020247403,-150.0,0.00027534,4]
[362135985,1748020247412,-420.0,0.00027534,4]
[362135987,1748020247422,-420.0,0.00027534,4]
[362135989,1748020247432,-420.0,0.00027534,4]
[362135991,1748020247442,-420.0,0.00027534,4]
[362135993,1748020247452,-866.35,0.00027534,4]
[362135995,1748020247461,-420.0,0.00027534,4]
[362135997,1748020247471,-420.0,0.00027534,4]
[362136000,1748020247480,-420.0,0.00027534,4]
[362136002,1748020247490,-420.0,0.00027534,4]
[362136004,1748020247500,-420.0,0.00027534,4]
[362136006,1748020247509,-670.82,0.00027534,4]
[362136008,1748020247518,-420.0,0.00027534,4]
[362136010,1748020247527,-1376.7,0.00027534,4]
[362136012,1748020247537,-420.0,0.00027534,4]
[362136014,1748020247546,-420.0,0.00027534,4]
[362136016,1748020247555,-420.0,0.00027534,4]
[362136018,1748020247565,-420.0,0.00027534,4]
[362136020,1748020247574,-625.0,0.00027534,4]
[362136022,1748020247584,-420.0,0.00027534,4]
[362136024,1748020247593,-420.0,0.00027534,4]
[362136026,1748020247602,-150.0,0.00027534,4]
[362136028,1748020247611,-420.0,0.00027534,4]
[362136030,1748020247620,-4268.83,0.00027534,4]
[362136032,1748020247629,-420.0,0.00027534,4]
[362136034,1748020247639,-420.0,0.00027534,4]
[362136036,1748020247648,-420.0,0.00027534,4]
[362136038,1748020247657,-265.48497849,0.00027534,4]
[362136040,1748020247666,-242.78,0.00027534,4]
[362136042,1748020247675,-420.0,0.00027534,4]
[362136044,1748020247685,-420.0,0.00027534,4]
[362136046,1748020247694,-420.0,0.00027534,4]
[362136048,1748020247704,-2199.74,0.00027534,2]
[362136050,1748020247713,-420.0,0.00027534,4]
[362136052,1748020247722,-5410.74,0.00027534,4]
[362136054,1748020247731,-320.06,0.00027534,4]
[362136056,1748020247740,-420.0,0.00027534,4]
[362136058,1748020247749,-420.0,0.00027534,4]
[362136060,1748020247759,-420.0,0.00027534,4]
[362136062,1748020247768,-420.0,0.00027534,4]
[362136064,1748020247777,-408.66638545,0.00027534,4]
[362136066,1748020247787,-6080.5,0.00027534,4]
[362136068,1748020247797,-420.0,0.00027534,4]
[362136070,1748020247807,-1473.4,0.00027534,4]
[362136072,1748020247816,-420.0,0.00027534,4]
[362136074,1748020247825,-426.71,0.00027534,4]
[362136076,1748020247835,-420.0,0.00027534,4]
[362136078,1748020247845,-473.36879313,0.00027534,4]
[362136080,1748020247855,-420.0,0.00027534,4]
[362136082,1748020247865,-522.81,0.00027534,4]
[362136084,1748020247874,-788.06,0.00027534,4]
[362136086,1748020247883,-420.0,0.00027534,4]
[362136088,1748020247892,-420.0,0.00027534,4]
[362136090,1748020247902,-741.45,0.00027534,4]
[362136092,1748020247910,-420.0,0.00027534,4]
[362136094,1748020247919,-9451.47,0.00027534,4]
[362136096,1748020247930,-420.0,0.00027534,4]
[362136098,1748020247939,-420.0,0.00027534,4]
[362136100,1748020247948,-420.0,0.00027534,4]
[362136101,1748020247958,-420.0,0.00027534,2]
[362136103,1748020247968,-826.54,0.00027534,4]
[362136105,1748020247980,-420.0,0.00027534,4]
[362136107,1748020247990,-625.0,0.00027561,4]
[362136109,1748020247999,-500.0,0.00027568,5]
[362136112,1748020248010,-625.0,0.00027589,4]
[362136114,1748020248019,-625.0,0.00027616,4]
[362136116,1748020248028,-625.0,0.00027644,4]
[362136118,1748020248038,-441.68205044,0.00027659,17]
[362136120,1748020248048,-30854.7619287,0.00027661,3]
[362136121,1748020248057,-625.0,0.00027671,4]
[362136124,1748020248067,-199.23,0.00027671,4]
[362136125,1748020248076,-420.0,0.00027671,4]
[362136128,1748020248086,-420.0,0.00027671,4]
[362136130,1748020248096,-420.0,0.00027671,4]
[362136132,1748020248106,-420.0,0.00027671,4]
[362136133,1748020248115,-203.5,0.00027671,4]
[362136136,1748020248124,-418.52,0.00027671,4]
[362136138,1748020248135,-420.0,0.00027671,4]
[362136139,1748020248146,-420.0,0.00027671,4]
[362136142,1748020248157,-420.0,0.00027671,4]
[362136143,1748020248170,-420.0,0.00027671,4]
[362136145,1748020248181,-420.0,0.00027671,4]
[362136147,1748020248191,-420.0,0.00027671,4]
[362136149,1748020248201,-420.0,0.00027671,4]
[362136151,1748020248210,-866.35,0.00027671,4]
[362136153,1748020248220,-420.0,0.00027671,4]
[362136155,1748020248229,-420.0,0.00027671,4]
[362136157,1748020248238,-420.0,0.00027671,4]
[362136159,1748020248247,-420.0,0.00027671,4]
[362136161,1748020248259,-420.0,0.00027671,4]
[362136163,1748020248269,-670.82,0.00027671,4]
[362136170,1748020248445,-317.68232323,0.00027671,4]
[362136171,1748020248458,-1376.7,0.00027671,4]
[362136172,1748020248468,-420.0,0.00027671,4]
[362136173,1748020248481,-420.0,0.00027671,4]
[362136174,1748020248493,-420.0,0.00027671,4]
[362136175,1748020248507,-420.0,0.00027671,4]
[362136176,1748020248519,-314.35369845,0.00027671,4]
[362136177,1748020248529,-420.0,0.00027671,4]
[362136178,1748020248538,-420.0,0.00027671,4]
[362136179,1748020248548,-4268.83,0.00027671,4]
[362136180,1748020248558,-420.0,0.00027671,4]
[362136181,1748020248567,-420.0,0.00027671,4]
[362136182,1748020248578,-420.0,0.00027671,4]
[362136183,1748020248588,-202.07000582,0.00027671,4]
[362136184,1748020248598,-446.04021373,0.00027671,4]
[362136185,1748020248608,-420.0,0.00027671,4]
[362136186,1748020248618,-2199.74,0.00027671,2]
[362136187,1748020248629,-420.0,0.00027671,4]
[362136188,1748020248640,-5410.74,0.00027671,4]
[362136189,1748020248650,-420.0,0.00027671,4]
[362136190,1748020248660,-463.2410226,0.00027671,4]
[362136191,1748020248669,-420.0,0.00027671,4]
[362136192,1748020248679,-420.0,0.00027671,4]
[362136193,1748020248689,-6080.5,0.00027671,4]
[362136194,1748020248699,-420.0,0.00027671,4]
[362136195,1748020248710,-1473.4,0.00027671,4]
[362136196,1748020248719,-420.0,0.00027671,4]
[362136197,1748020248729,-420.0,0.00027671,4]
[362136198,1748020248739,-420.0,0.00027671,4]
[362136199,1748020248749,-522.81,0.00027671,4]
[362136200,1748020248759,-788.06,0.00027671,4]
[362136201,1748020248769,-420.0,0.00027671,4]
[362136202,1748020248778,-420.0,0.00027671,4]
[362136203,1748020248787,-741.45,0.00027671,4]
[362136204,1748020248798,-420.0,0.00027671,4]
[362136205,1748020248807,-9451.47,0.00027671,4]
[362136206,1748020248817,-420.0,0.00027671,4]
[362136207,1748020248826,-420.0,0.00027671,4]
[362136208,1748020248836,-420.0,0.00027671,4]
[362136209,1748020248845,-420.0,0.00027671,2]
[362136210,1748020248855,-826.54,0.00027671,4]
[362136211,1748020248865,-420.0,0.00027671,4]
[362136212,1748020248875,-768.55828786,0.00027682,2]
[362136213,1748020248884,-625.0,0.00027698,4]
[362136214,1748020248895,-625.0,0.00027726,4]
[362136215,1748020248904,-625.0,0.00027753,4]
[362136216,1748020248914,-200.0,0.00027779,2]
[362136217,1748020248924,-625.0,0.00027781,4]
[362136218,1748020248934,-30854.7619287,0.00027798,3]
[362136219,1748020248944,-12294.8859734,0.00027798,3]
[362136220,1748020248955,-800.0,0.000278,10]
[362136221,1748020248967,-625.0,0.00027808,4]
[362136222,1748020248979,-420.0,0.00027808,4]
[362136223,1748020248989,-420.0,0.00027808,4]
[362136224,1748020248999,-420.0,0.00027808,4]
[362136225,1748020249011,-420.0,0.00027808,4]
[362136226,1748020249021,-420.0,0.00027808,4]
[362136227,1748020249030,-420.0,0.00027808,4]
[362136228,1748020249041,-420.0,0.00027808,4]
[362136229,1748020249052,-504.17,0.00027808,4]
[362136230,1748020249062,-420.0,0.00027808,4]
[362136231,1748020249072,-420.0,0.00027808,4]
[362136232,1748020249083,-420.0,0.00027808,4]
[362136233,1748020249092,-866.35,0.00027808,4]
[362136234,1748020249101,-420.0,0.00027808,4]
[362136235,1748020249111,-218.35252374,0.00027808,4]
[362136236,1748020249121,-420.0,0.00027808,4]
[362136237,1748020249130,-420.0,0.00027808,4]
[362136238,1748020249140,-420.0,0.00027808,4]
[362136239,1748020249149,-670.82,0.00027808,4]
[362136240,1748020249159,-1376.7,0.00027808,4]
[362136241,1748020249169,-420.0,0.00027808,4]
[362136242,1748020249179,-420.0,0.00027808,4]
[362136243,1748020249189,-420.0,0.00027808,4]
[362136244,1748020249199,-420.0,0.00027808,4]
[362136245,1748020249209,-420.0,0.00027808,4]
[362136246,1748020249219,-420.0,0.00027808,4]
[362136247,1748020249229,-4268.83,0.00027808,4]
[362136248,1748020249238,-420.0,0.00027808,4]
[362136249,1748020249248,-420.0,0.00027808,4]
[362136250,1748020249258,-420.0,0.00027808,4]
[362136251,1748020249268,-420.0,0.00027808,4]
[362136252,1748020249278,-2199.74,0.00027808,2]
[362136253,1748020249288,-389.33,0.00027808,4]
[362136254,1748020249298,-5410.74,0.00027808,4]
[362136255,1748020249308,-420.0,0.00027808,4]
[362136256,1748020249319,-455.41,0.00027808,4]
[362136257,1748020249328,-420.0,0.00027808,4]
[362136258,1748020249338,-6080.5,0.00027808,4]
[362136259,1748020249349,-367.95,0.00027808,4]
[362136260,1748020249359,-1473.4,0.00027808,4]
[362136261,1748020249369,-420.0,0.00027808,4]
[362136262,1748020249379,-420.0,0.00027808,4]
[362136263,1748020249389,-420.0,0.00027808,4]
[362136264,1748020249398,-522.81,0.00027808,4]
[362136265,1748020249408,-788.06,0.00027808,4]
[362136266,1748020249418,-420.0,0.00027808,4]
[362136267,1748020249427,-741.45,0.00027808,4]
[362136268,1748020249436,-420.0,0.00027808,4]
[362136269,1748020249446,-9451.47,0.00027808,4]
[362136270,1748020249455,-420.0,0.00027808,4]
[362136271,1748020249464,-420.0,0.00027808,4]
[362136272,1748020249473,-420.0,0.00027808,4]
[362136273,1748020249483,-420.0,0.00027808,2]
[362136274,1748020249492,-826.54,0.00027808,4]
[362136275,1748020249501,-420.0,0.00027808,4]
[362136276,1748020249511,-625.0,0.00027835,4]
[362136277,1748020249520,-625.0,0.00027863,4]
[362136278,1748020249529,-625.0,0.0002789,4]
[362136279,1748020249539,-1600.0,0.000279,10]
[362136280,1748020249548,-15427.3809643,0.00027914,3]
[362136281,1748020249557,-12294.8859734,0.00027914,3]
[362136282,1748020249566,-625.0,0.00027918,4]
[362136283,1748020249576,-12294.8859734,0.00027924,3]
[362136284,1748020249585,-15427.3809643,0.00027925,3]
[362136285,1748020249595,-16467.79787275,0.00027934,7]
[362136286,1748020249604,-15427.3809643,0.00027935,3]
[362136287,1748020249613,-24589.7719468,0.00027935,3]
[362136288,1748020249622,-625.0,0.00027945,4]
[362136289,1748020249631,-420.0,0.00027945,4]
[362136290,1748020249640,-420.0,0.00027945,4]
[362136291,1748020249650,-420.0,0.00027945,4]
[362136292,1748020249660,-420.0,0.00027945,4]
[362136293,1748020249669,-420.0,0.00027945,4]
[362136294,1748020249679,-420.0,0.00027945,4]
[362136295,1748020249688,-420.0,0.00027945,4]
[362136296,1748020249708,-420.0,0.00027945,4]
[362136297,1748020249718,-420.0,0.00027945,4]
[362136298,1748020249728,-866.35,0.00027945,4]
[362136299,1748020249738,-420.0,0.00027945,4]
[362136300,1748020249748,-420.0,0.00027945,4]
[362136301,1748020249757,-420.0,0.00027945,4]
[362136302,1748020249768,-420.0,0.00027945,4]
[362136303,1748020249777,-670.82,0.00027945,4]
[362136304,1748020249787,-1376.7,0.00027945,4]
[362136305,1748020249797,-420.0,0.00027945,4]
[362136306,1748020249806,-420.0,0.00027945,4]
[362136307,1748020249816,-420.0,0.00027945,4]
[362136308,1748020249826,-420.0,0.00027945,4]
[362136309,1748020249835,-420.0,0.00027945,4]
[362136310,1748020249845,-420.0,0.00027945,4]
[362136311,1748020249856,-4268.83,0.00027945,4]
[362136312,1748020249865,-420.0,0.00027945,4]
[362136313,1748020249875,-420.0,0.00027945,4]
[362136314,1748020249885,-420.0,0.00027945,4]
[362136315,1748020249895,-420.0,0.00027945,4]
[362136316,1748020249905,-2199.74,0.00027945,2]
[362136317,1748020249915,-5410.74,0.00027945,4]
[362136318,1748020249924,-420.0,0.00027945,4]
[362136319,1748020249934,-420.0,0.00027945,4]
[362136320,1748020249944,-6080.5,0.00027945,4]
[362136321,1748020249954,-1473.4,0.00027945,4]
[362136322,1748020249965,-258.61462151,0.00027945,4]
[362136323,1748020249978,-420.0,0.00027945,4]
[362136324,1748020249988,-420.0,0.00027945,4]
[362136325,1748020249997,-522.81,0.00027945,4]
[362136326,1748020250007,-788.06,0.00027945,4]
[362136327,1748020250018,-420.0,0.00027945,4]
[362136328,1748020250027,-741.45,0.00027945,4]
[362136329,1748020250037,-420.0,0.00027945,4]
[362136330,1748020250048,-9451.47,0.00027945,4]
[362136331,1748020250058,-420.0,0.00027945,4]
[362136332,1748020250068,-420.0,0.00027945,4]
[362136333,1748020250077,-420.0,0.00027945,4]
[362136334,1748020250087,-420.0,0.00027945,2]
[362136335,1748020250096,-826.54,0.00027945,4]
[362136336,1748020250105,-420.0,0.00027945,4]
[362136337,1748020250115,-300.41,0.00027945,2]
[362136338,1748020250124,-768.55828786,0.00027966,2]
[362136339,1748020250134,-625.0,0.00027972,4]
[362136340,1748020250144,-625.0,0.00028,4]
[362136341,1748020250153,-2002.23518046,0.00028,4]
[362136342,1748020250163,-15427.3809643,0.00028003,3]
[362136343,1748020250172,-12294.8859734,0.00028003,3]
[362136344,1748020250181,-625.0,0.00028027,4]
[362136345,1748020250191,-625.0,0.00028055,4]
[362136346,1748020250200,-3579.30648828,0.00028061,3]
[362136347,1748020250395,-6242.55838429,0.00028061,3]
[362136348,1748020250407,-5605.51609173,0.00028061,3]
[362136349,1748020250417,-5791.39390827,0.00028061,3]
[362136350,1748020250429,-554.09,0.00028061,3]
[362136351,1748020250635,-420.0,0.00027397,4]
[362136352,1748020250645,-420.0,0.00027397,4]
[362136353,1748020250653,-420.0,0.00027534,4]
[362136354,1748020250662,-3936.60000005,0.00028061,3]
[362136355,1748020250674,-2012.80206508,0.00028061,3]
[362136356,1748020250684,-12294.8859734,0.00028062,3]
[362136357,1748020250693,-1013.54718,0.0002807,2]
[362136358,1748020250703,-4593.42893233,0.00028072,3]
[362136359,1748020250721,-26261.33299637,0.00028072,3]
[362136360,1748020250731,-24589.7719468,0.00028072,3]
[362136361,1748020250739,-420.0,0.00028081,4]
[362136362,1748020250749,-625.0,0.00028082,4]
[362136363,1748020250758,-420.0,0.00028082,4]
[362136364,1748020250767,-270.52,0.00028082,4]
[362136365,1748020250776,-420.0,0.00028082,4]
[362136366,1748020250786,-531.65,0.00028082,4]
[362136367,1748020250795,-420.0,0.00028082,4]
[362136368,1748020250804,-420.0,0.00028082,4]
[362136369,1748020250813,-420.0,0.00028082,4]
[362136370,1748020250822,-420.0,0.00028082,4]
[362136371,1748020250882,-420.0,0.00028082,4]
[362136372,1748020250892,-866.35,0.00028082,4]
[362136373,1748020250902,-420.0,0.00028082,4]
[362136374,1748020250911,-420.0,0.00028082,4]
[362136375,1748020250920,-420.0,0.00028082,4]
[362136376,1748020250930,-285.54769491,0.00028082,4]
[362136377,1748020250939,-1376.7,0.00028082,4]
[362136378,1748020250948,-420.0,0.00028082,4]
[362136379,1748020250957,-420.0,0.00028082,4]
[362136380,1748020250967,-420.0,0.00028082,4]
[362136381,1748020250979,-420.0,0.00028082,4]
[362136382,1748020250989,-420.0,0.00028082,4]
[362136383,1748020250998,-420.0,0.00028082,4]
[362136384,1748020251008,-1659.61637944,0.00028082,4]
[362136385,1748020251078,-433.97561987,0.00028082,4]
[362136386,1748020251090,-2175.23800069,0.00028082,4]
[362136387,1748020251099,-420.0,0.00028082,4]
[362136388,1748020251108,-420.0,0.00028082,4]
[362136389,1748020251118,-420.0,0.00028082,4]
[362136390,1748020251128,-253.94233831,0.00028082,4]
[362136391,1748020251140,-166.05766169,0.00028082,4]
[362136392,1748020251149,-2199.74,0.00028082,2]
[362136393,1748020251159,-2853.58633832,0.00028082,4]
[362136394,1748020251173,-921.63752136,0.00028082,4]
[362136395,1748020251190,-1635.51614032,0.00028082,4]
[362136396,1748020251200,-420.0,0.00028082,4]
[362136397,1748020251210,-420.0,0.00028082,4]
[362136398,1748020251219,-6080.5,0.00028082,4]
[362136399,1748020251228,-1473.4,0.00028082,4]
[362136400,1748020251238,-420.0,0.00028082,4]
[362136401,1748020251247,-259.82299502,0.00028082,4]
[362136402,1748020251257,-522.81,0.00028082,4]
[362136403,1748020251267,-788.06,0.00028082,4]
[362136404,1748020251276,-420.0,0.00028082,4]
[362136405,1748020251286,-741.45,0.00028082,4]
[362136406,1748020251295,-420.0,0.00028082,4]
[362136407,1748020251304,-9451.47,0.00028082,4]
[362136408,1748020251314,-410.0,0.00028082,4]
[362136409,1748020251324,-420.0,0.00028082,4]
[362136410,1748020251333,-209.79477589,0.00028082,4]
[362136411,1748020251342,-420.0,0.00028082,2]
[362136412,1748020251351,-826.54,0.00028082,4]
[362136413,1748020251361,-420.0,0.00028082,4]
[362136414,1748020251370,-625.0,0.00028109,4]
[362136415,1748020251379,-625.0,0.00028137,4]
[362136416,1748020251389,-625.0,0.00028164,4]
[362136417,1748020251397,-2021.263664,0.00028167,120]
[362136418,1748020251407,-500.0,0.00028187,7]